bitfinex-derivatives/quotes_SOLF0:USTF0_20250706
["timestamp","ask_amount","ask_price","bid_price","bid_amount"]
[1751833296816,6.5878,151.76,151.74,3.11396678]
[1751833297520,6.5878,151.76,151.73,9.70286678]
[1751833297816,6.5878,151.76,151.73,6.5889]
[1751833298021,6.5878,151.76,151.73,9.70286678]
[1751833299624,54.72146678,151.77,151.74,6.5885]
[1751833300327,54.72146678,151.77,151.74,9.70246678]
[1751833301323,4.04978092,151.76,151.74,9.70246678]
[1751833301524,54.72146678,151.77,151.74,6.5885]
[1751833301726,4.05016775,151.76,151.74,9.70246678]
[1751833301929,54.72146678,151.77,151.74,9.70246678]
[1751833303128,6.5877,151.76,151.74,9.70246678]
[1751833304227,6.5877,151.76,151.74,3.11396678]
[1751833305629,6.5877,151.76,151.73,9.70276678]
[1751833305929,6.5882,151.75,151.73,6.5888]
[1751833306126,6.5882,151.75,151.73,3.11396678]
[1751833306326,6.5882,151.75,151.72,6.5892]
[1751833306528,6.5882,151.75,151.73,3.11396678]
[1751833308333,6.5882,151.75,151.74,3.11396678]
[1751833308632,6.5882,151.75,151.73,3.11396678]
[1751833310431,6.5882,151.75,151.73,9.70296678]
[1751833310634,6.5879,151.76,151.73,9.70296678]
[1751833311439,6.5882,151.75,151.73,3.11396678]
[1751833311734,3.11396678,151.74,151.7,3.11396678]
[1751833311929,2.2224,151.76,151.72,3.11396678]
[1751833312131,4.06250634,151.75,151.74,3.11396678]
[1751833312336,6.5884,151.75,151.73,3.11396678]
[1751833313833,6.5879,151.76,151.74,3.11396678]
[1751833314239,51.6074,151.77,151.75,3.11396678]
[1751833314439,4.0628638,151.76,151.75,3.11396678]
[1751833314738,51.6075,151.77,151.75,3.11396678]
[1751833314939,51.6075,151.77,151.75,9.70206678]
[1751833315237,51.6075,151.77,151.75,3.11396678]
[1751833315738,6.5877,151.76,151.74,9.70236678]
[1751833315938,6.5877,151.76,151.74,3.11396678]
[1751833319739,6.5877,151.76,151.73,9.70276678]
[1751833321143,6.5884,151.75,151.72,6.5894]
[1751833321342,6.5884,151.75,151.72,9.70336678]
[1751833321939,7.19050928,151.74,151.7,3.11396678]
[1751833322139,3.11396678,151.74,151.7,3.11396678]
[1751833323546,6.5891,151.73,151.7,9.70406678]
[1751833325346,3.11396678,151.74,151.7,3.11396678]
[1751833325549,6.5895,151.72,151.7,3.11396678]
[1751833328650,6.5895,151.72,151.69,6.5906]
[1751833328850,6.5895,151.72,151.7,3.11396678]
[1751833329657,6.5895,151.72,151.7,9.70426678]
[1751833330861,6.5895,151.72,151.7,3.11396678]
[1751833334359,6.5899,151.71,151.7,3.11396678]
[1751833335462,6.5899,151.71,151.69,3.11396678]
[1751833337457,6.5903,151.7,151.68,3.11396678]
[1751833339364,3.11396678,151.71,151.66,45.0]
[1751833339554,3.11396678,151.69,151.63,45.0]
[1751833339862,3.11396678,151.69,151.65,3.11396678]
[1751833340063,6.5914,151.68,151.65,9.70616678]
[1751833341464,6.5914,151.68,151.65,6.5922]
[1751833341665,6.5914,151.68,151.65,9.70616678]
[1751833344672,3.11396678,151.69,151.65,9.70616678]
[1751833345078,3.11396678,151.68,151.65,6.5922]
[1751833345375,3.11396678,151.68,151.65,9.70616678]
[1751833345871,9.70536678,151.68,151.65,9.70616678]
[1751833347675,3.11396678,151.68,151.65,9.70616678]
[1751833347870,45.0,151.72,151.67,3.11396678]
[1751833348076,3.11396678,151.71,151.68,3.11396678]
[1751833348375,9.70426678,151.71,151.67,6.5914]
[1751833348576,9.70426678,151.71,151.68,3.11396678]
[1751833349276,6.5903,151.71,151.68,3.11396678]
[1751833349578,6.5904,151.7,151.68,3.11396678]
[1751833351081,6.5901,151.71,151.68,9.70506678]
[1751833351283,52.63846678,151.76,151.7,3.11396678]
[1751833351580,52.63846678,151.76,151.72,3.11396678]
[1751833351976,6.5889,151.74,151.72,3.11396678]
[1751833352184,49.5245,151.76,151.73,3.11396678]
[1751833352378,47.2509,151.76,151.73,3.11396678]
[1751833353183,47.2509,151.76,151.71,6.5896]
[1751833353379,47.2509,151.76,151.73,3.11396678]
[1751833353782,6.5881,151.75,151.73,3.11396678]
[1751833354284,6.5887,151.74,151.72,3.11396678]
[1751833359684,48.11396678,151.76,151.72,3.11396678]
[1751833359884,45.0,151.76,151.73,3.11396678]
[1751833360085,45.0,151.76,151.74,3.11396678]
[1751833360285,51.588,151.76,151.74,3.11396678]
[1751833360483,6.588,151.76,151.74,3.11396678]
[1751833362387,6.5875,151.77,151.74,9.70246678]
[1751833362687,3.11396678,151.78,151.68,2.1667]
[1751833362688,3.11396678,151.78,151.75,3.11396678]
[1751833362987,2.3767,151.79,151.75,3.11396678]
[1751833362988,3.11396678,151.79,151.75,3.11396678]
[1751833363188,6.5871,151.78,151.75,9.70206678]
[1751833363489,3.11396678,151.78,151.75,3.11396678]
[1751833364688,6.5874,151.77,151.75,3.11396678]
[1751833366195,9.70106678,151.78,151.75,9.70206678]
[1751833369394,6.5874,151.77,151.75,3.11396678]
[1751833369593,6.5874,151.77,151.74,3.11396678]
[1751833369991,6.5874,151.77,151.74,6.5883]
[1751833370193,6.5874,151.77,151.74,9.70226678]
[1751833371291,6.5874,151.77,151.74,6.5883]
[1751833371598,6.5874,151.77,151.74,9.70226678]
[1751833373292,6.5878,151.76,151.73,6.589]
[1751833373592,9.70176678,151.76,151.73,3.11396678]
[1751833374496,9.70226678,151.75,151.72,6.5892]
[1751833374893,3.11396678,151.75,151.71,9.70366678]
[1751833375494,6.5886,151.74,151.71,9.70366678]
[1751833375692,3.11396678,151.75,151.72,6.5894]
[1751833376091,9.70226678,151.75,151.71,3.11396678]
[1751833376293,9.70226678,151.75,151.72,6.5892]
[1751833377500,9.70226678,151.75,151.72,9.70316678]
[1751833378100,6.5883,151.75,151.72,9.70316678]
[1751833378901,6.5883,151.75,151.72,6.5892]
[1751833379101,6.5883,151.75,151.72,9.70316678]
[1751833379506,9.70226678,151.75,151.72,9.70316678]
[1751833379701,9.70226678,151.75,151.72,6.5892]
[1751833380903,6.5883,151.75,151.72,6.5892]
[1751833381105,9.70226678,151.75,151.72,6.5892]
[1751833384209,6.5883,151.75,151.72,6.5892]
[1751833384411,9.70226678,151.75,151.72,6.5892]
[1751833384812,3.11396678,151.73,151.69,3.11396678]
[1751833385514,9.70326678,151.73,151.7,6.5901]
[1751833385807,3.11396678,151.72,151.7,6.5901]
[1751833386909,3.11396678,151.71,151.67,48.11396678]
[1751833387213,3.11396678,151.7,151.67,45.0]
[1751833387416,9.70436678,151.7,151.67,6.5913]
[1751833388611,3.11396678,151.68,151.64,3.11396678]
[1751833389004,9.70526678,151.68,151.65,6.5923]
[1751833389409,44.98,151.7,151.63,44.98]
[1751833389603,3.11396678,151.66,151.64,6.5927]
[1751833390215,6.5921,151.66,151.63,54.68716678]
[1751833390608,9.70606678,151.66,151.63,9.70716678]
[1751833390813,9.70606678,151.66,151.63,6.5932]
[1751833390814,6.5921,151.66,151.63,6.5932]
[1751833391404,6.5926,151.65,151.6,4.86791851]
[1751833391607,4.86791851,151.68,151.6,4.86791851]
[1751833392112,6.5927,151.65,151.62,6.5935]
[1751833393010,4.4,151.69,151.6,4.86791851]
[1751833393216,9.26791851,151.69,151.62,4.86791851]
[1751833393515,4.86791851,151.67,151.6,9.39191851]
[1751833394516,6.5928,151.65,151.62,6.5938]
[1751833399224,6.5922,151.66,151.63,6.5933]
[1751833400223,6.5922,151.66,151.59,45.0]
[1751833400224,6.5917,151.67,151.64,6.5928]
[1751833400525,44.98,151.7,151.64,4.86791851]
[1751833400728,44.98,151.7,151.66,4.86791851]
[1751833400923,6.5909,151.69,151.66,11.45981851]
[1751833402323,6.5909,151.69,151.66,6.5919]
[1751833402922,44.98,151.7,151.63,4.86791851]
[1751833404124,6.5915,151.68,151.65,6.5925]
[1751833405427,6.5909,151.69,151.66,6.5918]
[1751833409239,6.5913,151.68,151.65,11.46021851]
[1751833409434,6.5913,151.68,151.65,6.5923]
[1751833410036,6.5918,151.67,151.64,6.5928]
[1751833410840,4.86791851,151.69,151.62,4.86791851]
[1751833411041,7.21661851,151.69,151.62,4.86791851]
[1751833412542,6.5924,151.66,151.63,6.5933]
[1751833419249,6.5926,151.65,151.62,6.5936]
[1751833419448,6.5926,151.65,151.61,4.86791851]
[1751833420149,6.5923,151.66,151.63,6.5934]
[1751833420644,6.5923,151.66,151.61,4.86791851]
[1751833420852,44.98,151.7,151.65,4.86791851]
[1751833421249,6.591,151.69,151.66,6.5918]
[1751833423653,621.25121851,151.74,151.65,4.86791851]
[1751833423856,621.25121851,151.74,151.67,4.86791851]
[1751833424256,6.5899,151.71,151.67,4.86791851]
[1751833424452,621.25121851,151.74,151.67,4.86791851]
[1751833425251,6.5896,151.72,151.69,6.5907]
[1751833425652,6.5902,151.71,151.68,6.5911]
[1751833425951,52.03121851,151.74,151.67,4.86791851]
[1751833426458,6.5903,151.7,151.67,11.45931851]
[1751833428156,6.5903,151.7,151.67,6.5914]
[1751833428453,6.5903,151.7,151.68,6.5912]
[1751833428660,6.59,151.71,151.68,6.5912]
[1751833433157,6.5905,151.7,151.68,6.5912]
[1751833433964,6.5901,151.71,151.68,6.5912]
[1751833434762,4.86791851,151.72,151.64,49.82791851]
[1751833436266,6.5911,151.69,151.66,6.5919]
[1751833439668,6.5912,151.68,151.66,6.5919]
[1751833441672,6.5909,151.69,151.66,6.5919]
[1751833441870,6.5909,151.69,151.67,6.5916]
[1751833442573,6.5909,151.69,151.66,6.5919]
[1751833445770,4.86791851,151.72,151.64,44.96]
[1751833445974,6.5914,151.68,151.65,6.5924]
[1751833447877,6.5914,151.68,151.66,6.5919]
[1751833450176,4.86791851,151.72,151.66,6.5919]
[1751833450177,6.5909,151.69,151.66,6.5919]
[1751833453282,6.5912,151.68,151.66,6.5919]
[1751833454779,4.86791851,151.68,151.61,17.01909451]
[1751833454980,4.86818693,151.68,151.61,12.151176]
[1751833455187,4.86902661,151.67,151.6,12.151176]
[1751833455386,6.5929,151.64,151.61,6.5939]
[1751833456587,6.5927,151.65,151.62,6.5937]
[1751833457690,6.593,151.64,151.61,6.5941]
[1751833460292,6.593,151.64,151.59,51.98852661]
[1751833461298,6.5926,151.65,151.62,6.5936]
[1751833462792,2.2266,151.68,151.63,4.86902661]
[1751833463099,2.2266,151.68,151.59,49.3524]
[1751833463398,6.5923,151.66,151.62,4.86902661]
[1751833463588,2.2266,151.68,151.62,4.86902661]
[1751833464599,6.5918,151.67,151.64,6.5929]
[1751833473705,7.09562661,151.68,151.62,4.86902661]
[1751833474306,2.2266,151.68,151.59,47.1195]
[1751833474507,4.86902661,151.67,151.57,1.14760586]
[1751833474706,4.86902661,151.65,151.59,4.86902661]
[1751833475005,4.86902661,151.65,151.6,6.5947]
[1751833476004,2.2778,151.66,151.59,4.86902661]
[1751833476804,6.5933,151.64,151.61,6.5942]
[1751833477909,6.5937,151.63,151.6,6.5946]
[1751833478204,2.2778,151.66,151.6,6.5946]
[1751833479504,6.5938,151.62,151.6,6.5946]
[1751833480102,4.86902661,151.65,151.57,1.14760586]
[1751833480308,4.86902661,151.63,151.56,4.86902661]
[1751833480704,6.5949,151.6,151.57,6.5958]
[1751833484010,6.5949,151.6,151.58,6.5955]
[1751833486605,6.5952,151.59,151.56,4.86902661]
[1751833487605,6.5952,151.59,151.57,6.5959]
[1751833489612,6.5949,151.6,151.57,6.5959]
[1751833494016,6.5951,151.59,151.57,6.5959]
[1751833494913,6.5951,151.59,151.56,9.71427888]
[1751833498315,6.5957,151.58,151.56,9.71427888]
[1751833499020,6.5957,151.58,151.56,6.5963]
[1751833499718,3.11797888,151.58,151.54,3.11797888]
[1751833500214,6.5962,151.57,151.54,9.71497888]
[1751833501815,2.3604,151.63,151.55,3.11797888]
[1751833502121,3.11797888,151.6,151.56,3.11797888]
[1751833502319,3.11797888,151.6,151.57,3.11797888]
[1751833503025,6.5954,151.59,151.57,3.11797888]
[1751833503520,6.5954,151.59,151.56,9.71417888]
[1751833505022,6.5954,151.59,151.56,6.5962]
[1751833509627,4.87230478,151.61,151.55,6.5968]
[1751833512420,6.5958,151.58,151.55,6.5968]
[1751833513624,4.87230478,151.61,151.55,6.5968]
[1751833514524,6.5958,151.58,151.55,6.5968]
[1751833516729,6.596,151.57,151.55,6.5968]
[1751833519830,6.5958,151.58,151.55,6.5968]
[1751833523736,6.5953,151.59,151.56,6.5962]
[1751833524937,6.5953,151.59,151.56,9.71437569]
[1751833525634,6.5953,151.59,151.56,9.71432978]
[1751833525842,6.5949,151.6,151.57,6.5959]
[1751833526035,3.11812978,151.61,151.57,6.5959]
[1751833526534,44.98,151.62,151.59,3.11812978]
[1751833526837,44.98,151.62,151.6,3.11812978]
[1751833527035,44.98,151.62,151.61,3.11812978]
[1751833527434,44.98,151.62,151.6,9.71054626]
[1751833529341,51.5738,151.62,151.6,9.71054626]
[1751833532944,6.5938,151.62,151.6,9.71054626]
[1751833533845,9.70974626,151.63,151.6,9.71054626]
[1751833534045,6.5936,151.63,151.6,9.71054626]
[1751833534242,6.5936,151.63,151.6,3.11614626]
[1751833534944,6.5936,151.63,151.6,9.71054626]
[1751833536350,6.5939,151.62,151.59,9.71104626]
[1751833537552,6.5935,151.63,151.6,6.5946]
[1751833537851,9.70964626,151.63,151.6,6.5946]
[1751833538053,6.5935,151.63,151.6,9.71074626]
[1751833541453,3.11614626,151.64,151.61,6.5942]
[1751833542550,47.2178,151.66,151.61,6.5942]
[1751833542853,3.11614626,151.62,151.55,20.61011803]
[1751833543055,6.5948,151.6,151.57,3.11614626]
[1751833543251,6.5948,151.6,151.56,3.11614626]
[1751833543957,9.71154626,151.59,151.55,2.3756]
[1751833544157,9.71154626,151.59,151.55,5.49174626]
[1751833545357,9.71154626,151.59,151.56,6.5963]
[1751833547260,3.11614626,151.58,151.55,6.5966]
[1751833548054,9.71194626,151.58,151.55,6.5966]
[1751833548258,6.5958,151.58,151.55,6.5966]
[1751833548961,6.5958,151.58,151.55,9.71274626]
[1751833550362,6.5958,151.58,151.56,6.5964]
[1751833550659,6.5953,151.59,151.56,3.11614626]
[1751833550856,3.11614626,151.6,151.57,6.5956]
[1751833551056,51.5145,151.61,151.58,3.11614626]
[1751833551463,48.03614626,151.61,151.57,9.71184626]
[1751833552166,6.5947,151.6,151.57,9.71184626]
[1751833552765,6.5947,151.6,151.58,6.5955]
[1751833553766,6.5947,151.6,151.57,9.71194626]
[1751833555165,3.11614626,151.6,151.56,3.11614626]
[1751833555667,48.03614626,151.61,151.57,3.11614626]
[1751833556965,6.5949,151.6,151.57,9.71194626]
[1751833559568,6.5952,151.59,151.57,3.11614626]
[1751833560666,6.5952,151.59,151.56,9.71234626]
[1751833562567,44.92,151.61,151.57,3.11614626]
[1751833562870,48.03614626,151.61,151.57,3.11614626]
[1751833563468,6.5953,151.59,151.56,9.71234626]
[1751833564862,6.5956,151.58,151.55,6.5968]
[1751833565066,6.5956,151.58,151.55,9.71294626]
[1751833568570,6.5956,151.58,151.56,6.5964]
[1751833569270,6.5956,151.58,151.56,9.71254626]
[1751833573176,48.03614626,151.61,151.57,9.71204626]
[1751833573371,48.03614626,151.61,151.57,3.11614626]
[1751833573567,44.92,151.61,151.57,3.11614626]
[1751833573976,48.03614626,151.61,151.57,3.11614626]
[1751833574677,6.5948,151.6,151.58,6.5954]
[1751833584286,6.5948,151.6,151.57,9.71194626]
[1751833585487,9.71094626,151.6,151.57,9.71194626]
[1751833585686,3.11614626,151.58,151.54,3.11614626]
[1751833585890,3.11614626,151.57,151.53,60.23242489]
[1751833586089,6.5963,151.57,151.54,6.5971]
[1751833586479,9.71244626,151.57,151.54,6.5971]
[1751833586679,3.11614626,151.56,151.53,12.19627863]
[1751833586884,3.11614626,151.55,151.52,12.19627863]
[1751833587285,44.92,151.58,151.52,12.19627863]
[1751833587488,3.11614626,151.55,151.51,15.31242489]
[1751833588688,9.71324626,151.55,151.52,6.5979]
[1751833589595,44.92,151.58,151.51,12.19627863]
[1751833589792,3.11614626,151.53,151.49,3.11614626]
[1751833590496,3.11614626,151.53,151.49,9.71524626]
[1751833591289,6.5984,151.52,151.49,9.71524626]
[1751833591895,6.5984,151.52,151.49,6.5991]
[1751833592196,6.5984,151.52,151.49,9.71524626]
[1751833593098,3.11614626,151.52,151.48,3.11614626]
[1751833593291,3.11614626,151.52,151.46,12.19627863]
[1751833593292,3.11614626,151.51,151.47,3.11614626]
[1751833593596,6.5989,151.51,151.48,9.71574626]
[1751833593800,3.11614626,151.52,151.48,9.71574626]
[1751833594097,6.5987,151.51,151.48,9.71574626]
[1751833594699,6.5987,151.51,151.49,3.11614626]
[1751833596102,6.599,151.5,151.47,6.6002]
[1751833596299,6.599,151.5,151.48,3.11614626]
[1751833599197,3.11614626,151.51,151.48,9.71604626]
[1751833599198,9.71494626,151.51,151.48,9.71604626]
[1751833599908,6.5988,151.51,151.48,9.71604626]
[1751833600207,9.71494626,151.51,151.48,9.71604626]
[1751833602210,6.5988,151.51,151.48,9.71604626]
[1751833602808,44.92,151.53,151.5,3.11614626]
[1751833603011,3.11614626,151.55,151.51,3.11614626]
[1751833603511,6.5974,151.54,151.51,3.11614626]
[1751833604109,6.5974,151.54,151.51,9.71444626]
[1751833610518,9.71354626,151.54,151.51,9.71444626]
[1751833612021,6.5977,151.53,151.51,3.11614626]
[1751833612323,6.5977,151.53,151.5,9.71504626]
[1751833622532,3.11614626,151.52,151.47,12.19627863]
[1751833622823,3.11614626,151.52,151.45,14.39497863]
[1751833623021,6.5988,151.51,151.48,9.71584626]
[1751833624428,9.71494626,151.51,151.48,9.71584626]
[1751833624628,6.5988,151.51,151.48,9.71584626]
[1751833627627,6.5988,151.51,151.48,6.5997]
[1751833627827,9.71564626,151.49,151.46,3.11614626]
[1751833628029,3.11614626,151.48,151.44,46.06862858]
[1751833628228,9.71674626,151.47,151.44,6.6013]
[1751833631333,6.6006,151.47,151.44,9.71744626]
[1751833633030,9.71654626,151.47,151.44,9.71744626]
[1751833633235,3.11614626,151.47,151.43,11.39361552]
[1751833633737,6.601,151.46,151.43,11.39361552]
[1751833635839,6.6012,151.45,151.43,1.67556926]
[1751833637936,6.6012,151.45,151.43,8.27756926]
[1751833638540,2.3277,151.5,151.44,3.11614626]
[1751833638738,44.92,151.51,151.49,3.11614626]
[1751833639040,44.92,151.51,151.43,13.87184789]
[1751833639041,44.94,151.55,151.5,3.11614626]
[1751833639343,48.05614626,151.55,151.51,3.11614626]
[1751833640144,6.5976,151.54,151.51,3.11614626]
[1751833640848,6.5976,151.54,151.5,6.5986]
[1751833641346,6.5977,151.53,151.5,6.5986]
[1751833644448,49.81552123,151.55,151.49,4.87552123]
[1751833645148,6.5984,151.52,151.49,11.47472123]
[1751833646949,6.5977,151.53,151.49,4.87552123]
[1751833647344,44.94,151.55,151.49,4.87552123]
[1751833647549,6.5978,151.53,151.5,6.5988]
[1751833651247,6.5982,151.52,151.5,6.5988]
[1751833651649,6.5982,151.52,151.49,4.87552123]
[1751833652248,6.5979,151.53,151.49,4.87552123]
[1751833652749,6.5979,151.53,151.5,6.599]
[1751833653048,6.5982,151.52,151.49,4.87552123]
[1751833653446,6.5982,151.52,151.49,11.47472123]
[1751833660252,6.5986,151.51,151.49,11.47472123]
[1751833662750,6.5986,151.51,151.49,6.5992]
[1751833662958,6.5986,151.51,151.49,9.72011346]
[1751833663457,6.5983,151.52,151.49,9.72011346]
[1751833664856,6.5983,151.52,151.5,6.5989]
[1751833665054,6.5983,151.52,151.5,9.71981346]
[1751833665357,6.5983,151.52,151.5,3.12091346]
[1751833665959,6.5986,151.51,151.5,3.12091346]
[1751833667360,6.5984,151.52,151.5,3.12091346]
[1751833674362,9.71881346,151.53,151.5,9.71991346]
[1751833675064,44.94,151.55,151.5,3.12091346]
[1751833675363,44.94,151.55,151.54,3.12091346]
[1751833675563,44.94,151.55,151.53,3.12091346]
[1751833675863,51.5368,151.55,151.52,9.71871346]
[1751833676463,6.5973,151.54,151.51,9.71931346]
[1751833676664,9.71821346,151.54,151.51,9.71931346]
[1751833677668,9.71821346,151.54,151.51,6.5984]
[1751833682466,3.12091346,151.54,151.51,6.5984]
[1751833682662,54.65801346,151.55,151.51,6.5984]
[1751833682965,51.5371,151.55,151.52,6.5981]
[1751833683175,54.65801346,151.55,151.52,6.5981]
[1751833683664,54.65801346,151.55,151.51,9.71931346]
[1751833685071,6.5973,151.54,151.51,9.71931346]
[1751833689375,6.5973,151.54,151.52,6.5982]
[1751833689574,6.5973,151.54,151.51,3.12091346]
[1751833690074,6.5973,151.54,151.51,6.5982]
[1751833690272,6.5973,151.54,151.51,9.71911346]
[1751833696074,48.06091346,151.55,151.51,9.71911346]
[1751833696281,6.5978,151.53,151.51,9.71911346]
[1751833696780,6.5975,151.54,151.51,9.71911346]
[1751833700889,6.5975,151.54,151.51,9.71832905]
[1751833713000,6.5975,151.54,151.52,6.5981]
[1751833714800,9.71712905,151.55,151.52,6.5981]
[1751833715000,6.597,151.55,151.52,6.5981]
[1751833715702,6.5974,151.54,151.52,6.5981]
[1751833716002,6.5974,151.54,151.51,9.71852905]
[1751833720207,6.5974,151.54,151.52,6.5981]
[1751833720406,6.597,151.55,151.52,6.5981]
[1751833722808,6.5973,151.54,151.51,9.71852905]
[1751833723209,3.12012905,151.56,151.51,9.71852905]
[1751833724312,6.5975,151.54,151.51,9.71852905]
[1751833726814,6.5975,151.54,151.51,3.12012905]
[1751833727012,6.597,151.55,151.51,3.12012905]
[1751833727210,6.597,151.55,151.51,15.31640768]
[1751833727413,6.597,151.55,151.52,3.11969064]
[1751833727716,6.597,151.55,151.52,9.71759064]
[1751833731320,6.5973,151.54,151.52,9.71759064]
[1751833741328,6.5971,151.55,151.52,9.71759064]
[1751833742729,6.5973,151.54,151.52,9.71759064]
[1751833747036,9.71669064,151.55,151.52,9.71759064]
[1751833747538,3.11969064,151.55,151.52,9.71759064]
[1751833748529,6.5973,151.54,151.52,9.71759064]
[1751833750843,6.597,151.55,151.52,9.71759064]
[1751833751342,3.11969064,151.56,151.52,9.71759064]
[1751833751642,6.5969,151.55,151.52,9.71759064]
[1751833754744,9.71659064,151.55,151.52,9.71759064]
[1751833756147,6.5969,151.55,151.52,9.71759064]
[1751833756348,9.71659064,151.55,151.52,9.71759064]
[1751833757151,6.5973,151.54,151.52,9.71759064]
[1751833758151,9.71679064,151.55,151.52,9.71759064]
[1751833758649,6.5971,151.55,151.52,9.71759064]
[1751833760756,9.71679064,151.55,151.52,9.71759064]
[1751833760948,6.5975,151.54,151.51,18.79467863]
[1751833761149,6.5975,151.54,151.51,9.71809064]
[1751833762551,3.11969064,151.53,151.5,12.19627863]
[1751833762757,3.11969064,151.52,151.48,3.11969064]
[1751833764550,6.5989,151.51,151.48,9.71939064]
[1751833764752,3.11969064,151.5,151.47,15.31596927]
[1751833764956,3.11969064,151.48,151.46,12.19627863]
[1751833765154,3.11969064,151.47,151.44,12.19627863]
[1751833765355,3.11969064,151.46,151.43,46.51556926]
[1751833765751,3.11969064,151.46,151.43,1.67556926]
[1751833766650,3.11969064,151.46,151.43,11.3970599]
[1751833766852,3.11969064,151.47,151.43,11.3970599]
[1751833767455,9.72039064,151.47,151.43,11.3970599]
[1751833767648,4.5619,151.51,151.44,3.11969064]
[1751833767844,3.11969064,151.5,151.46,3.11969064]
[1751833768154,6.5997,151.49,151.46,9.72019064]
[1751833771061,9.71889064,151.5,151.47,6.6003]
[1751833772662,9.71889064,151.5,151.46,9.72029064]
[1751833776163,6.5997,151.49,151.46,9.72029064]
[1751833776362,6.5997,151.49,151.43,1.67556926]
[1751833776363,9.71939064,151.49,151.45,9.72069064]
[1751833777766,6.6,151.48,151.45,9.72069064]
[1751833779671,6.5995,151.49,151.47,3.11969064]
[1751833782969,6.5991,151.5,151.48,3.11969064]
[1751833787168,6.5991,151.5,151.47,9.71989064]
[1751833794276,9.71879064,151.5,151.47,9.71989064]
[1751833795376,9.71879064,151.5,151.48,6.5998]
[1751833795570,3.11969064,151.5,151.48,6.5998]
[1751833797576,9.71879064,151.5,151.48,6.5998]
[1751833798785,9.71879064,151.5,151.47,9.71969064]
[1751833799282,3.11969064,151.5,151.48,6.5998]
[1751833800274,9.71869064,151.5,151.48,6.5998]
[1751833800680,3.11969064,151.5,151.48,6.5998]
[1751833802588,9.71879064,151.5,151.48,6.5998]
[1751833802789,3.11969064,151.49,151.47,6.6001]
[1751833803594,3.11969064,151.49,151.46,9.72029064]
[1751833803891,3.11969064,151.49,151.46,3.11969064]
[1751833804594,3.11969064,151.49,151.47,6.6001]
[1751833805593,9.71919064,151.49,151.47,6.6001]
[1751833805794,6.5995,151.49,151.47,6.6001]
[1751833807891,9.71889064,151.5,151.47,6.6001]
[1751833810493,9.71869064,151.51,151.48,6.5998]
[1751833811283,6.599,151.5,151.47,6.6002]
[1751833811588,3.11969064,151.5,151.46,3.11969064]
[1751833812193,9.71899064,151.5,151.47,6.6001]
[1751833812393,6.5993,151.5,151.47,6.6001]
[1751833812995,3.11969064,151.51,151.46,3.11969064]
[1751833814295,6.5993,151.5,151.47,6.6001]
[1751833814995,6.5988,151.51,151.48,6.5996]
[1751833815194,6.5988,151.51,151.48,3.11969064]
[1751833815494,6.5988,151.51,151.49,3.11969064]
[1751833815885,51.4384,151.52,151.49,9.71889064]
[1751833816494,51.4384,151.52,151.5,9.71859064]
[1751833816896,44.84,151.52,151.5,9.71859064]
[1751833817892,44.84,151.52,151.5,3.11969064]
[1751833818195,44.84,151.52,151.47,3.11969064]
[1751833818196,3.11969064,151.51,151.47,3.11969064]
[1751833818395,3.11969064,151.5,151.47,3.11969064]
[1751833818599,6.5995,151.49,151.46,9.72019064]
[1751833821000,9.71919064,151.49,151.46,9.72019064]
[1751833821702,6.5995,151.49,151.46,9.72019064]
[1751833821896,6.5995,151.49,151.47,6.6003]
[1751833829209,9.71889064,151.5,151.47,6.6003]
[1751833829907,9.71889064,151.5,151.47,9.71999064]
[1751833831712,6.5995,151.49,151.47,6.6003]
[1751833831911,6.5995,151.49,151.47,9.71999064]
[1751833833013,9.71889064,151.5,151.47,9.71999064]
[1751833834619,3.11969064,151.5,151.46,6.6006]
[1751833834912,3.11969064,151.5,151.46,9.72029064]
[1751833836314,6.5997,151.49,151.46,9.72029064]
[1751833838114,44.84,151.52,151.45,12.19627863]
[1751833838418,44.8,151.52,151.48,3.11969064]
[1751833838612,47.91969064,151.52,151.48,9.71929064]
[1751833838807,54.51799064,151.52,151.48,3.11969064]
[1751833839214,54.51799064,151.52,151.49,6.5994]
[1751833839418,51.3983,151.52,151.49,6.5994]
[1751833839616,51.3983,151.52,151.49,9.71909064]
[1751833843821,54.51799064,151.52,151.49,9.71909064]
[1751833845420,54.51799064,151.52,151.49,6.5994]
[1751833845620,6.5986,151.51,151.49,6.5994]